Cogmind - Beta 12 @@@ ROGUE MODE // 2023.04.09 @ 02:05:59 Player: dhtilly Result: Destroyed by Y-54 Guardian with Flak Gun Performance ------------- Evolutions (3) 1500 Regions Visited (9) 1800 Robots Destroyed (147) 735 Value Destroyed (6411) 6411 Prototype IDs (6) 120 Alien Tech Used (0) 0 Bonus (2794) 2794 TOTAL SCORE: 13360 Bonus ------- High Alert Combat Kills 927 Follower Combat Kills 531 Entered Garrisons 400 Used RIF Installer 1000 Friendly Fire -64 Cogmind --------- Core Integrity 0/700 Matter 221/300 Energy 263/290 System Corruption 22% Temperature Cool (0) Movement Treading (240) Ox1 Location -7/Garrison Parts ------- > --- POWER (1) -------- Reinforced Deuterium Engine (fused) > --- PROPULSION (4) --- Improved Heavy Treads Improved Heavy Treads > --- UTILITY (6) ------ Improved Cooling System (fused) High-capacity Storage Unit Cargo Storage Unit > --- WEAPON (2) ------- Mini Assault Cannon Heavy Missile Launcher > --- INVENTORY (30) --- Light Nuclear Core Armored Wheel Armored Wheel Armored Wheel Cargo Storage Unit High-capacity Matter Pod (200) Gravity Neutralizer Structural Scanner Transmission Jammer Core Shielding Hardened Heavy Armor Plating Hacking Suite Relay Coupler [NC] (25) Relay Coupler [Swarmer] (42) Relay Coupler [Swarmer] (44) Relay Coupler [Grunt] (41) Relay Coupler [Duelist] (28) Relay Coupler [Duelist] (36) Relay Coupler [Sentry] (28) Relay Coupler [Sentry] (25) Shock Rifle Advanced Assault Cannon Smartbomb Launcher Remote Datajack Chainsword Peak State ------------ > --- POWER ------------ Reinforced Deuterium Engine > --- PROPULSION ------- Improved Heavy Treads Improved Heavy Treads > --- UTILITY ---------- Improved Cooling System High-capacity Storage Unit Cargo Storage Unit Improved Targeting Computer Improved Medium Armor Plating > --- WEAPON ----------- Mini Assault Cannon Chainsword > --- INVENTORY -------- Light Nuclear Core Armored Wheel Armored Wheel Armored Wheel Cargo Storage Unit High-capacity Matter Pod Gravity Neutralizer Structural Scanner Transmission Jammer Core Shielding Hardened Heavy Armor Plating Hacking Suite Relay Coupler [Swarmer] Relay Coupler [Swarmer] Relay Coupler [Grunt] Relay Coupler [Duelist] Relay Coupler [Duelist] Relay Coupler [Sentry] Shock Rifle Advanced Assault Cannon Heavy Missile Launcher Smartbomb Launcher Remote Datajack [Rating: 62] Favorites ----------- Power Improved Ion Engine Engine Improved Ion Engine Propulsion Light Treads Treads Light Treads Leg Aluminum Leg Wheel Armored Wheel Flight Unit Xenon Bombardment Thruster Utility High-capacity Storage Unit Device Structural Scanner Storage High-capacity Storage Unit Processor Improved Targeting Computer Hackware Relay Coupler [NC] Protection Hardened Medium Armor Plating Weapon Flak Cannon Energy Gun Medium Laser Energy Cannon Advanced Beam Cannon Ballistic Gun Light Assault Rifle Ballistic Cannon Flak Cannon Launcher Grenade Launcher Special Weapon Remote Datajack Impact Weapon Flail Slashing Weapon Chainsword Special Melee Weapon Datajack Build | -11 -10 -10 -9 -8 -8 -7 -7 -7 -7 ------- Run | Jun Mat Min Mat Mat Gar Fac Was Fac Gar Slots Evolved 6 | . . . 2 2 . 2 . . . Power . | . . . . . . . . . . Propulsion 2 | . . . 1 1 . . . . . Utility 4 | . . . 1 1 . 2 . . . Weapon . | . . . . . . . . . . Parts Attached 235 | 6 11 7 48 22 60 8 7 30 36 Power 14 | 1 1 1 5 1 1 1 . 2 1 Engine 14 | 1 1 1 5 1 1 1 . 2 1 Core . | . . . . . . . . . . Reactor . | . . . . . . . . . . Propulsion 55 | 2 1 1 17 6 11 . 4 6 7 Treads 39 | . . 1 17 5 9 . 1 3 3 Leg 2 | . . . . . . . . . 2 Wheel 13 | 2 1 . . 1 2 . 3 2 2 Hover . | . . . . . . . . . . Flight 1 | . . . . . . . . 1 . Utility 61 | 1 2 2 8 7 14 1 2 14 10 Device 28 | . 1 1 5 3 6 . . 7 5 Storage 6 | 1 1 . 1 . . . . 1 2 Processor 6 | . . 1 . 1 1 . . 3 . Hackware 4 | . . . . . 2 . 1 . 1 Protection 17 | . . . 2 3 5 1 1 3 2 Artifact . | . . . . . . . . . . Weapon 105 | 2 7 3 18 8 34 6 1 8 18 Energy Gun 9 | 1 5 2 1 . . . . . . Energy Cannon 19 | . . . 4 1 8 1 . 4 1 Ballistic Gun 3 | 1 . 1 1 . . . . . . Ballistic Cannon 35 | . . . 8 4 10 4 . 3 6 Launcher 11 | . 2 . 1 . 5 . . . 3 Special Weapon 4 | . . . . . . . . 1 3 Impact Weapon 3 | . . . 3 . . . . . . Slashing Weapon 15 | . . . . 3 6 1 . . 5 Piercing Weapon . | . . . . . . . . . . Special Melee Weapon 6 | . . . . . 5 . 1 . . Unidentified Prototypes 6 | . . . 3 1 . . . 1 1 Parts Lost 35 | . 4 5 1 . 9 . 6 1 9 Power 3 | . . 1 . . . . 1 . 1 Propulsion 15 | . 1 1 1 . 5 . 2 1 4 Utility 6 | . . . . . 2 . 1 . 3 Weapon 11 | . 3 3 . . 2 . 2 . 1 Highest Loss Streak 5 | . 2 3 1 . 3 . 5 1 5 To Critical Strikes . | . . . . . . . . . . Average Slot Usage (%) 93 | . 89 91 99 98 99 84 64 94 79 Engine 9 | . 14 13 10 9 9 7 4 7 6 Treads 21 | . . 13 31 35 28 30 14 14 9 Wheel 7 | . 27 14 1 . 7 . 4 12 3 Device 13 | . 5 14 21 15 11 15 11 12 9 Storage 10 | . 14 14 11 9 9 7 7 7 9 Processor 4 | . . . . 8 2 . . 13 9 Hackware 1 | . . . . . 2 . 7 7 1 Protection 4 | . . . . 3 10 7 7 1 7 Energy Gun 2 | . 20 6 . . . . . . . Energy Cannon 5 | . . . 10 9 4 . . 6 2 Ballistic Gun 1 | . 5 13 . . . . . . . Ballistic Cannon 6 | . . . 10 8 7 13 1 6 7 Slashing Weapon 1 | . . . . . 4 . . . 4 Naked Turns . | . . . . . . . . . . Heaviest Build 215 | 14 31 30 61 67 72 75 70 71 215 Greatest Support 150 | 26 32 16 69 102 102 80 80 26 150 Greatest Overweight (x) 25 | 2 1 1 2 . 5 . 3 6 25 Average Overweight (x) . | . . 1 . . . . 1 2 1 Largest Inventory Capacity 30 | 8 15 15 20 20 20 20 20 20 30 Average Capacity 18 | 6 11 15 17 20 20 20 20 20 22 Most Carried 28 | 4 11 14 20 20 20 20 20 20 28 Average Carried 17 | 2 8 11 17 19 19 19 19 18 19 Final Capacity 30 | 8 15 15 20 20 20 20 20 20 30 Final Carried 28 | 4 11 13 20 19 20 20 18 20 28 Class Distribution -------------------- 44% | Mutant 32% | Scavenger-Mutant 21% | Bothacker-Mutant Dominant Class ---------------- Mutant | -10/Materials Mutant | -10/Mines Scavenger-Mutant | -9/Materials Mutant | -8/Materials Scavenger-Mutant | -8/Garrison Bothacker-Mutant | -7/Factory Bothacker-Mutant | -7/Waste Bothacker-Mutant | -7/Factory Bothacker-Mutant | -7/Garrison Resources | -11 -10 -10 -9 -8 -8 -7 -7 -7 -7 ----------- Run | Jun Mat Min Mat Mat Gar Fac Was Fac Gar Matter Collected 5167 | 191 199 307 1135 518 1017 106 3 581 1110 Remotely . | . . . . . . . . . . Salvage Created 5769 | . 472 255 1044 691 1015 56 . 559 1677 Parts 268 | . 31 9 75 24 61 3 . 24 41 Haulers Intercepted 10 | . 1 . 6 1 . . . 2 . Recyclers Shooed 3 | . . . 1 1 . 1 . . . Parts Field Recycled . | . . . . . . . . . . Retrieved Matter . | . . . . . . . . . . Parts Self-Destructed . | . . . . . . . . . . Prevented . | . . . . . . . . . . Kills | -11 -10 -10 -9 -8 -8 -7 -7 -7 -7 ------- Run | Jun Mat Min Mat Mat Gar Fac Was Fac Gar Combat Hostiles Destroyed 125 | . 12 4 25 15 35 3 . 8 23 Melee 2 | . . . . . . . . . 2 Guns 14 | . 11 3 . . . . . . . Cannons 84 | . . . 20 14 25 3 . 8 14 AOE 22 | . 1 1 4 . 10 . . . 6 Classes Destroyed 15 | . 5 . 5 1 4 . . . . Worker 3 | . . . . 1 . . . 2 . Builder 1 | . . . 1 . . . . . . Hauler 10 | . 1 . 6 1 . . . 2 . Recycler 3 | . 1 1 . . . . . 1 . Mechanic 1 | . . . 1 . . . . . . Operator 1 | . . . 1 . . . . . . Watcher 3 | . 1 . 2 . . . . . . Swarmer 37 | . 6 . 8 . 11 2 . 1 9 Grunt 50 | . 6 4 8 10 11 1 . . 10 Brawler 2 | . . . . . 2 . . . . Duelist 7 | . . . 1 2 3 . . . 1 Sentry 19 | . . . 8 3 4 . . 4 . Demolisher 1 | . . . . . 1 . . . . Specialist 4 | . . . . . 2 . . . 2 Programmer 5 | . . . . . 1 . . 3 1 Best Kill Streak 5 | . 5 1 5 4 5 2 . 2 5 Combat Bots Only 5 | . 5 1 5 4 5 2 . 1 5 Max Kills in Single Turn 3 | . 2 1 3 1 2 1 . 1 2 Gunslinging 1 | . 1 . . . . . . . . Exploded 3 | . 1 1 3 . 2 . . . 2 Melee 1 | . . . . . . . . . 1 Uniques/NPCs Destroyed . | . . . . . . . . . . Combat | -11 -10 -10 -9 -8 -8 -7 -7 -7 -7 -------- Run | Jun Mat Min Mat Mat Gar Fac Was Fac Gar Damage Taken 7786 | . 570 461 738 928 1922 222 260 799 1886 Core 1357 | . 123 75 107 94 255 7 133 89 474 Absorbed by Shields 52 | . . . . . . 52 . . . Redirected to Shielding 11 | . . . . . . . . . 11 Regen/Repaired (Parts) 121 | . . . 121 . . . . . . Core Remaining (%) 57 | 100 . 20 73 . 36 . . . . Volleys Fired 456 | . 47 43 87 53 87 13 1 37 88 Largest 2 | . 2 2 2 2 2 2 1 2 2 Hottest 128 | . 90 85 112 112 119 88 48 128 128 Shots Fired 730 | . 83 59 156 106 140 15 1 61 109 Gun 151 | . 83 57 11 . . . . . . Cannon 557 | . . . 143 106 131 15 1 61 100 Launcher 17 | . . 2 2 . 9 . . . 4 Special 5 | . . . . . . . . . 5 Kinetic 347 | . 15 33 77 53 62 15 1 29 62 Thermal 331 | . 46 16 77 53 69 . . 32 38 Explosive 17 | . . 2 2 . 9 . . . 4 Electromagnetic 30 | . 22 8 . . . . . . . Robot Hit Streak 27 | . 7 14 12 13 13 4 1 27 13 Robot Miss Streak 9 | . 4 3 7 6 7 9 . 1 3 Penetration Max . | . . . . . . . . . . Secondary Targets 1 | . 1 . . . . . . . . Max Gunslinging Chain 1 | . 1 . . . . . . . . Shots Hit Robots 550 | . 45 40 104 82 103 13 4 48 111 Core Hits 333 | . 22 14 71 61 88 13 . 17 47 Critical Kills 3 | . . . 1 1 . . . . 1 Critical Parts Destroyed 1 | . . 1 . . . . . . . Critical Strikes 17 | . 3 2 2 1 . . . 1 8 Burn 5 | . 3 1 1 . . . . . . Meltdown 3 | . . . 1 1 . . . . 1 Destroy 1 | . . 1 . . . . . . . Blast 7 | . . . . . . . . 1 6 Sever 1 | . . . . . . . . . 1 Melee Attacks 111 | . . . 4 4 36 1 3 . 63 Impact 4 | . . . 4 . . . . . . Slashing 91 | . . . . 4 23 1 . . 63 Piercing . | . . . . . . . . . . Sneak Attacks 10 | . . . . . 10 . . . . Combat Hostiles . | . . . . . . . . . . Follow-up Attacks . | . . . . . . . . . . Damage Inflicted 14882 | . 729 452 2424 1631 3039 189 29 1292 5097 Guns 1104 | . 642 379 83 . . . . . . Cannons 8717 | . . . 1996 1631 1952 189 29 1292 1628 Explosions 2311 | . 87 73 339 . 1087 . . . 725 Melee 2744 | . . . . . . . . . 2744 Ramming 6 | . . . 6 . . . . . . Kinetic 5210 | . 103 203 1116 868 1128 189 29 566 1008 Thermal 4496 | . 463 137 963 763 824 . . 726 620 Explosive 2224 | . . 73 339 . 1087 . . . 725 Electromagnetic 202 | . 163 39 . . . . . . . Impact . | . . . . . . . . . . Slashing 2744 | . . . . . . . . . 2744 Piercing . | . . . . . . . . . . Highest Corruption 22 | . . . 1 . 2 . 17 22 22 Average Corruption 11 | . . . 1 . 1 . 11 19 22 Corruption Purged . | . . . . . . . . . . Corruption Blocked . | . . . . . . . . . . Effects 214 | . . . 19 . 11 . 5 61 118 Message Errors 58 | . . . 5 . 4 . 1 18 30 Matter Fused 45 | . . . 6 . 1 . 1 9 28 Heat Flow Errors 23 | . . . 1 . 2 . . 8 12 Energy Discharges 15 | . . . 2 . 1 . . 5 7 Parts Fused 2 | . . . . . . . . . 2 Data Loss (minor) 22 | . . . 2 . 2 . 2 11 5 Data Loss (major) 14 | . . . . . . . 1 2 11 Misfires 14 | . . . 2 . 1 . . 3 8 Alerts 3 | . . . 1 . . . . 1 1 Misdirections 1 | . . . . . . . . 1 . Weapon Failures 17 | . . . . . . . . 3 14 Overload Shots . | . . . . . . . . . . Overflow Damage 270 | . . . 36 . 10 . . . 224 Projectiles 47 | . . . 16 . 10 . . . 21 Explosions 61 | . . . 20 . . . . . 41 Melee 162 | . . . . . . . . . 162 Knockbacks 85 | . . . 16 38 11 7 . . 13 Impact . | . . . . . . . . . . Kinetic 73 | . . . 12 34 9 6 . . 12 Secondary 12 | . . . 4 4 2 1 . . 1 Self-Inflicted Damage 128 | . . . . . 128 . . . . Shots 6 | . . . . . 6 . . . . Rammed 1 | . . . 1 . . . . . . Targets Rammed 1 | . . . 1 . . . . . . Kicked . | . . . . . . . . . . Crushed . | . . . . . . . . . . Highest Temperature 554 | . 243 86 127 69 246 . . 360 554 Average Temperature 61 | . 72 26 9 30 34 . . 106 132 Received Heat Transfer 2507 | . 171 258 207 558 594 62 . 180 477 Effects 10 | . 3 . . . . . . 1 6 Shutdowns 2 | . . . . . . . . 1 1 Energy Bleed 2 | . 1 . . . . . . . 1 Interference 5 | . 2 . . . . . . . 3 Damage (core) 1 | . . . . . . . . . 1 Siege Activations 2 | . . . . . . . . . 2 Total Turns 29 | . . . . . . . . . 29 Longest Duration 22 | . . . . . . . . . 22 Robots Corrupted . | . . . . . . . . . . Combat Hostiles . | . . . . . . . . . . Parts Fried . | . . . . . . . . . . Impact Corruptions . | . . . . . . . . . . Robots Melted 3 | . . . 1 1 . . . . 1 Combat Hostiles 3 | . . . 1 1 . . . . 1 Parts Melted 13 | . 2 2 2 . 2 . . 1 4 Heat Transferred 8492 | . 1311 385 1850 1369 1249 . . 1153 1175 Parts Sabotaged . | . . . . . . . . . . Parts Stolen . | . . . . . . . . . . Parts Stripped . | . . . . . . . . . . Power Chain Reactions 1 | . 1 . . . . . . . . Missiles Intercepted . | . . . . . . . . . . Alert | -11 -10 -10 -9 -8 -8 -7 -7 -7 -7 ------- Run | Jun Mat Min Mat Mat Gar Fac Was Fac Gar Peak Influence 2370 | . 206 93 600 543 2370 1285 449 346 1103 Initial 1243 | . . 45 35 191 253 1243 449 251 117 Average 584 | . 77 69 390 357 1343 1245 398 224 491 Maximum Alert Level 5 | . 1 . 2 2 5 4 2 1 4 Low Security (%) 23 | 100 99 100 11 1 . . . 42 8 Level 1 27 | . . . 32 76 6 . 51 57 38 Level 2 22 | . . . 55 21 9 . 48 . 28 Level 3 7 | . . . . . 12 . . . 23 Level 4 11 | . . . . . 37 100 . . . Level 5 7 | . . . . . 33 . . . . High Security . | . . . . . . . . . . Max Security . | . . . . . . . . . . Squads Dispatched 12 | . 2 . 3 4 . 1 . 2 . Investigation 3 | . 1 . . 2 . . . . . Extermination 3 | . . . . . . 1 . 2 . Reinforcement 6 | . 1 . 3 2 . . . . . Assault . | . . . . . . . . . . Garrison . | . . . . . . . . . . Intercept . | . . . . . . . . . . Searches Triggered . | . . . . . . . . . . Construction Impeded . | . . . . . . . . . . Haulers Reinforced . | . . . . . . . . . . Active Scanning Responses . | . . . . . . . . . . Cargo Convoy Interrupts . | . . . . . . . . . . Stealth | -11 -10 -10 -9 -8 -8 -7 -7 -7 -7 --------- Run | Jun Mat Min Mat Mat Gar Fac Was Fac Gar Distress Signals 7 | . 2 . 1 4 . . . . . Communications Jammed . | . . . . . . . . . . Distress Signals . | . . . . . . . . . . Times Spotted 205 | . 25 6 51 27 43 7 6 10 30 Peak Tracking Total 6 | . 4 2 6 6 5 4 5 2 5 Tactical Retreats 13 | . 4 . 2 2 2 1 . 1 1 Traps | -11 -10 -10 -9 -8 -8 -7 -7 -7 -7 ------- Run | Jun Mat Min Mat Mat Gar Fac Was Fac Gar Traps Triggered 16 | . 1 . 2 1 3 1 . . 8 Indirectly . | . . . . . . . . . . Trap Hack Attempts . | . . . . . . . . . . Triggered . | . . . . . . . . . . Disarmed . | . . . . . . . . . . Reprogrammed . | . . . . . . . . . . Reused . | . . . . . . . . . . Traps Extracted . | . . . . . . . . . . Installed . | . . . . . . . . . . Triggered . | . . . . . . . . . . Machines | -11 -10 -10 -9 -8 -8 -7 -7 -7 -7 ---------- Run | Jun Mat Min Mat Mat Gar Fac Was Fac Gar Machines Disabled 15 | . . . 4 . 6 . . . 5 Max in Single Turn 1 | . . . 1 . 1 . . . 1 Garrison Relay 8 | . . . . . 6 . . . 2 Machines Repaired . | . . . . . . . . . . Machines Sabotaged . | . . . . . . . . . . Overloaded Fab Kills . | . . . . . . . . . . Hacking | -11 -10 -10 -9 -8 -8 -7 -7 -7 -7 --------- Run | Jun Mat Min Mat Mat Gar Fac Was Fac Gar Machines Accessed 39 | . 7 . 14 5 3 . . 7 3 Terminals 28 | . 7 . 10 2 3 . . 3 3 Fabricators 1 | . . . . . . . . 1 . Repair Stations 3 | . . . 2 . . . . 1 . Recycling Units . | . . . . . . . . . . Scanalyzers 5 | . . . 2 2 . . . 1 . Garrison Access 2 | . . . . 1 . . . 1 . Total Hacks 125 | . 26 . 44 23 7 . . 19 6 Successful 68 | . 14 . 27 16 1 . . 8 2 Failed 57 | . 12 . 17 7 6 . . 11 4 Catastrophic 6 | . 1 . 2 . 1 . . 1 1 Database Lockouts . | . . . . . . . . . . Manual 45 | . 18 . 12 10 2 . . 2 1 Terminals 87 | . 26 . 27 11 7 . . 10 6 Fabricators 2 | . . . . . . . . 2 . Repair Stations 11 | . . . 7 . . . . 4 . Recycling Units . | . . . . . . . . . . Scanalyzers 23 | . . . 10 11 . . . 2 . Garrison Access 2 | . . . . 1 . . . 1 . Terminal Hacks 26 | . 9 . 8 4 1 . . 2 2 Part Schematic 3 | . 2 . . 1 . . . . . Emergency Access Points 3 | . 1 . 1 . . . . . 1 Terminal Index 2 | . 1 . . 1 . . . . . Alert Level 4 | . 1 . 1 1 . . . 1 . Unreport Threat 1 | . . . 1 . . . . . . Locate Traps 2 | . 1 . 1 . . . . . . Dispatch Records 1 | . . . 1 . . . . . . Transport Status 1 | . . . 1 . . . . . . Hauler Manifests 4 | . 1 . 1 1 . . . 1 . Zone Layout 3 | . 2 . 1 . . . . . . Garrison Registry 1 | . . . . . 1 . . . . Patrol Navigation 1 | . . . . . . . . . 1 Fabricator Hacks . | . . . . . . . . . . Repair Station Hacks 7 | . . . 6 . . . . 1 . Scan Component 4 | . . . 3 . . . . 1 . Repair 3 | . . . 3 . . . . . . Recycling Unit Hacks . | . . . . . . . . . . Scanalyzer 19 | . . . 8 9 . . . 2 . Insert Component 9 | . . . 4 4 . . . 1 . Analyze 10 | . . . 4 5 . . . 1 . Garrison Access Hacks 2 | . . . . 1 . . . 1 . Unlock Access 2 | . . . . 1 . . . 1 . Unauthorized Hacks 14 | . 5 . 5 2 . . . 2 . Terminals 14 | . 5 . 5 2 . . . 2 . Botnet 14 | . 5 . 5 2 . . . 2 . Fabricators . | . . . . . . . . . . Repair Stations . | . . . . . . . . . . Recycling Units . | . . . . . . . . . . Scanalyzers . | . . . . . . . . . . Garrison Access . | . . . . . . . . . . Data Cores Recovered . | . . . . . . . . . . Used . | . . . . . . . . . . Hacking Detections 36 | . 6 . 14 4 3 . . 6 3 Full Trace Events 3 | . . . 1 1 1 . . . . Feedback Events . | . . . . . . . . . . Feedback Blocked . | . . . . . . . . . . Robot Schematics Acquired . | . . . . . . . . . . Robots Built . | . . . . . . . . . . Authchips . | . . . . . . . . . . Time . | . . . . . . . . . . Total Robot Build Rating . | . . . . . . . . . . Part Schematics Acquired 10 | . 2 . 4 3 . . . 1 . Parts Built . | . . . . . . . . . . Authchips . | . . . . . . . . . . Time . | . . . . . . . . . . Total Part Build Rating . | . . . . . . . . . . Parts Repaired 3 | . . . 3 . . . . . . Time 109 | . . . 109 . . . . . . Parts Recycled . | . . . . . . . . . . Recycled Matter . | . . . . . . . . . . Retrieved Matter . | . . . . . . . . . . Retrieved Components . | . . . . . . . . . . Parts Scanalyzed 9 | . . . 4 4 . . . 1 . Part Schematics Acquired 7 | . . . 4 2 . . . 1 . Parts Damaged . | . . . . . . . . . . Bothacking | -11 -10 -10 -9 -8 -8 -7 -7 -7 -7 ------------ Run | Jun Mat Min Mat Mat Gar Fac Was Fac Gar Used RIF Installer 2 | . . . . . 1 . . . 1 Program Shield 1 | . . . . . . . . . 1 Robots Hacked 9 | . . . . . 3 . 3 . 3 Non-combat 1 | . . . . . 1 . . . . Combat 8 | . . . . . 2 . 3 . 3 Robot Hacks Applied 9 | . . . . . 3 . 3 . 3 ignore_targets 2 | . . . . . . . 2 . . scatter_targeting 1 | . . . . . . . . . 1 link_complan 1 | . . . . . 1 . . . . amplify_resonance 1 | . . . . . . . 1 . . overwrite_iff 1 | . . . . . . . . . 1 formatsys_high 3 | . . . . . 2 . . . 1 Relay Couplers Released 31 | . . . . . 23 . . . 8 Machine Destruction 31 | . . . . . 23 . . . 8 Attached 4 | . . . . . 2 . 1 . 1 Fabnet Peak Effective % . | . . . . . . . . . . Robots Rewired 8 | . . . . . 5 . . . 3 Allies Hacked 1 | . . . . . 1 . . . . Hacks Repelled . | . . . . . . . . . . Allies | -11 -10 -10 -9 -8 -8 -7 -7 -7 -7 -------- Run | Jun Mat Min Mat Mat Gar Fac Was Fac Gar Total Allies 15 | . . 2 . . 7 . 1 . 5 Largest Group 6 | . . 2 1 . 6 5 2 . 3 Highest-Rated Group 143 | . . 41 31 . 143 125 58 . 48 Highest-Rated Ally 31 | . . 31 31 . 31 31 31 . 16 Total Orders 7 | . . . . . 7 . . . . STAY 4 | . . . . . 4 . . . . FOLLOW 3 | . . . . . 3 . . . . Ally Attacks 100 | . . 3 22 . 21 2 15 . 37 Total Damage 1362 | . . 63 294 . 313 34 291 . 367 Kills 19 | . . 2 8 . 5 1 . . 3 Allies Corrupted . | . . . . . . . . . . Allies Melted . | . . . . . . . . . . Intel | -11 -10 -10 -9 -8 -8 -7 -7 -7 -7 ------- Run | Jun Mat Min Mat Mat Gar Fac Was Fac Gar Robot Analysis Total . | . . . . . . . . . . Derelict Logs Recovered 3 | . . 3 . . . . . . . Drone Launches . | . . . . . . . . . . Drone Recoveries . | . . . . . . . . . . Exploration | -11 -10 -10 -9 -8 -8 -7 -7 -7 -7 ------------- Run | Jun Mat Min Mat Mat Gar Fac Was Fac Gar Turns Passed 12424 | 55 1047 784 2864 964 2910 290 156 1211 2143 Spaces Moved 6759 | 42 886 583 1466 424 1592 154 94 766 752 Core 18 | 5 . . . . . . . . 13 Treads 3222 | . . . 1173 424 1042 154 40 . 389 Legs 86 | . . . . . . . . . 86 Wheels 3433 | 37 886 583 293 . 550 . 54 766 264 Hover . | . . . . . . . . . . Flight . | . . . . . . . . . . Fastest Speed 50 | 50 90 115 115 160 120 160 120 115 105 Average Speed 146 | 91 94 115 155 160 152 160 143 125 213 Slowest Speed 1300 | 150 115 115 240 160 240 160 240 170 1300 Overloaded Moves . | . . . . . . . . . . Propulsion Burnouts . | . . . . . . . . . . Robots Hopped . | . . . . . . . . . . Cave-ins Triggered . | . . . . . . . . . . Exploration Rate (%) 59 | 3 98 98 97 43 96 7 66 16 72 Regions Visited 9 Branch Regions 1 Pre-discovered Areas . | . . . . . . . . . . Known Exits Taken 3 | . . 1 . 1 . . . 1 . Unknown Exits Taken 3 | 1 1 . 1 . . . . . . Scrap Searched 2 | . . 2 . . . . . . . Spaces Dug 21 | . . . 4 4 1 1 . 2 9 Terrain Destroyed 99 | . 2 10 18 4 28 1 . 2 34 Melee 19 | . . . 4 4 1 1 . . 9 Projectile 2 | . . . . . . . . 2 . AOE 78 | . 2 10 14 . 27 . . . 25 Terrain Rammed . | . . . . . . . . . . Walls Destroyed . | . . . . . . . . . . Machines Disabled . | . . . . . . . . . . Actions | -11 -10 -10 -9 -8 -8 -7 -7 -7 -7 --------- Run | Jun Mat Min Mat Mat Gar Fac Was Fac Gar Total 8441 | 55 1011 643 1910 602 1883 186 111 966 1074 Wait 566 | 4 54 3 241 70 54 . 5 84 51 Move 6752 | 41 885 582 1465 424 1590 154 93 766 752 Hop . | . . . . . . . . . . Pick Up 129 | 4 8 8 24 12 18 4 1 20 30 Fast Attach 63 | 6 6 . 10 3 7 . 3 15 13 Attach 44 | . 3 5 6 3 10 1 3 8 5 Detach 21 | . 2 . 3 . 5 . . 4 7 Swap 128 | . 2 2 32 16 43 7 1 7 18 Drop 119 | . 4 . 37 17 16 6 1 25 13 Fire 456 | . 47 43 87 53 87 13 1 37 88 Melee 111 | . . . 4 4 36 1 3 . 63 Ram . | . . . . . . . . . . Kick . | . . . . . . . . . . Crush 1 | . . . 1 . . . . . . Escape Stasis 27 | . . . . . 8 . . . 19 Rewire 24 | . . . . . 9 . . . 15 Trap . | . . . . . . . . . . Miscellaneous . | . . . . . . . . . . Route ------- -11/Junkyard -10/Materials (discovered 4 exits: *Mat x3 / [*Min]) -10/Mines (discovered 2 exits: *Mat x2) -9/Materials (discovered 6 exits: *Mat x3 / [*Min x2] / [*Sto]) -8/Materials (discovered 2 exits: *Fac / Gar) -8/Garrison (discovered 3 exits: *Fac x3) -7/Factory -7/Waste -7/Factory -7/Garrison (discovered 3 exits: [*Fac x3]) History --------- Turn | Location | Event 2 | -11/Junkyard | Met Revision 17 21 | -11/Junkyard | Discovered new exit (range 15) 56 | -11/Junkyard | Entered Materials 74 | -10/Materials | Discovered new exit (range 17) 304 | -10/Materials | Build established: Mutant 480 | -10/Materials | Discovered new exit (range 14) 584 | -10/Materials | Discovered new exit (range 17) 856 | -10/Materials | Discovered new exit (range 8) 1103 | -10/Materials | Entered Mines 1110 | -10/Mines | Core integrity fell below 50% 1177 | -10/Mines | Lost 3 parts (1n2w) 1214 | -10/Mines | Learned Materials stockpile data 1282 | -10/Mines | Learned Materials terminal intel 1301 | -10/Mines | Discovered new exit (range 4) 1658 | -10/Mines | Discovered new exit (range 7) 1666 | -10/Mines | Identified exit to Materials 1707 | -10/Mines | Learned Materials terminal intel 1887 | -10/Mines | Entered Materials 1887 | -9/Materials | Accompanied by 1 ally 1887 | -9/Materials | Evolved 2 slots: Propulsion x1, Utility x1 1889 | -9/Materials | Loaded intel: 12 terminal locations 1892 | -9/Materials | Led the pair of lost Derelicts to an unsafe place 2258 | -9/Materials | Discovered new exit (range 11) 2612 | -9/Materials | Discovered new exit (range 6) 2625 | -9/Materials | Build established: Scavenger-Mutant 3453 | -9/Materials | Discovered new exit (range 7) 3496 | -9/Materials | Discovered new exit (range 4) 3856 | -9/Materials | Repaired Adv. Beam Cannon 3883 | -9/Materials | Repaired Lgt. Treads 3889 | -9/Materials | Discovered new exit (range 9) 3984 | -9/Materials | Repaired Imp. Ion Engine 4395 | -9/Materials | Discovered new exit (range 14) 4467 | -9/Materials | Build established: Mutant 4751 | -9/Materials | Entered another Materials area 4751 | -8/Materials | Evolved 2 slots: Propulsion x1, Utility x1 4752 | -8/Materials | Loaded intel: 12 terminal locations 5137 | -8/Materials | Discovered new exit (range 5) 5712 | -8/Materials | Identified exit to Garrison 5715 | -8/Materials | Entered Garrison 5736 | -8/Garrison | Triggered checkpoint 5778 | -8/Garrison | Lost 3 parts (2n1u) 5914 | -8/Garrison | Triggered checkpoint 5917 | -8/Garrison | Garrison Relay disabled 6028 | -8/Garrison | Triggered checkpoint 6040 | -8/Garrison | Triggered checkpoint 6047 | -8/Garrison | Triggered checkpoint 6179 | -8/Garrison | Garrison Relay disabled 6206 | -8/Garrison | Discovered new exit (range 8) 6360 | -8/Garrison | Garrison Relay disabled 6454 | -8/Garrison | Triggered checkpoint 6457 | -8/Garrison | Core integrity fell below 50% 6497 | -8/Garrison | Garrison Relay disabled 6513 | -8/Garrison | Discovered new exit (range 32) 6513 | -8/Garrison | Discovered new exit (range 57) 6513 | -8/Garrison | Discovered new exit (range 23) 6739 | -8/Garrison | Build established: Scavenger-Mutant 6777 | -8/Garrison | Installed Relay Interface Framework 7079 | -8/Garrison | Garrison Relay disabled 7666 | -8/Garrison | Garrison Relay disabled 7723 | -8/Garrison | P-60 Hacker assimilated allied Rogue 3a 8505 | -8/Garrison | Identified exit to Factory 8625 | -8/Garrison | Entered Factory 8625 | -7/Factory | Accompanied by 5 allies 8625 | -7/Factory | Evolved 2 slots: Utility x2 8915 | -7/Factory | Sucked down chute 8915 | -7/Factory | Entered Waste 8916 | -7/Waste | Met a frightened Derelict 8920 | -7/Waste | 1 allies followed down the chute 8927 | -7/Waste | Spotted C-40 Crusher 8930 | -7/Waste | EMP discharged 8935 | -7/Waste | Spotted C-40 Crusher 8944 | -7/Waste | Build established: Bothacker-Mutant 8949 | -7/Waste | Crushed by Compactor (1 part destroyed, 2 dropped) 8967 | -7/Waste | Spotted C-40 Crusher 8972 | -7/Waste | Spotted C-40 Crusher 8983 | -7/Waste | Spotted C-40 Crusher 8990 | -7/Waste | Crushed by Compactor (1 part destroyed, 2 dropped) 8992 | -7/Waste | Spotted C-40 Crusher 8995 | -7/Waste | Crushed by Compactor (1 part destroyed, 2 dropped) 9018 | -7/Waste | Crushed by Compactor (1 part destroyed, 2 dropped) 9030 | -7/Waste | EMP discharged 9030 | -7/Waste | System corruption reached 10% 9049 | -7/Waste | Lost 5 parts (1p2n1u1w) 9059 | -7/Waste | Discovered new exit (range 10) 9071 | -7/Waste | Entered Factory 9305 | -7/Factory | Build established: Mutant 10097 | -7/Factory | Build established: Bothacker-Mutant 10282 | -7/Factory | Identified exit to Garrison 10282 | -7/Factory | Entered Garrison 10338 | -7/Garrison | Triggered checkpoint 10377 | -7/Garrison | Garrison Relay disabled 10444 | -7/Garrison | Triggered checkpoint 10586 | -7/Garrison | Core integrity fell below 50% 10655 | -7/Garrison | Lost 5 parts (1p3n1u) 10972 | -7/Garrison | Triggered checkpoint 10987 | -7/Garrison | Core integrity fell below 20% 11009 | -7/Garrison | Build established: Mutant 11409 | -7/Garrison | Build established: Bothacker-Mutant 11516 | -7/Garrison | Discovered new exit (range 12) 11598 | -7/Garrison | Triggered checkpoint 11669 | -7/Garrison | Discovered new exit (range 3) 11802 | -7/Garrison | Triggered checkpoint 11949 | -7/Garrison | Garrison Relay disabled 11974 | -7/Garrison | Triggered checkpoint 12064 | -7/Garrison | Discovered new exit (range 13) 12088 | -7/Garrison | Expanded RIF knowledge: Program Shield 12388 | -7/Garrison | Triggered checkpoint 12422 | -7/Garrison | Triggered checkpoint 12425 | -7/Garrison | Destroyed by Y-54 Guardian with Flak Gun Last Messages --------------- 12345_ Stasis field depleted. 12360_ System corrupted: Substantial component data lost. 12360_ Acquired 35 matter. 12378_ System corrupted: Heat flow error (+253). 12382_ ALERT: Garrison interior compromised. 12388_ Garrison Door breached. 12388_ Beams of light sweep through the air. An alarm sounds. 12390_ S-27 Virus destroyed. 12392_ System corrupted: Hvy. Missile Launcher failed to launch. 12394_ Destroyed Autogun. 12394_ S-27 Virus destroyed. 12394_ Destroyed VTOL Module. 12394_ S-27 Virus destroyed. 12396_ Imp. Medium Armor Plating destroyed. 12396_ S-27 Virus destroyed. 12402_ V>&/